{"text_format":"1","workbook":"xlsx","n_sheets":10,"sheets":["Letter","Instructions","Invoice","HybridTrial Entry (page 1) ","HybridTrial Entry (page 2)  ","Organic Trial Entry","Private Trials (page 1)","Private Trials (page 2)","Substitute Hybrid Form","ListedTraits"],"not_rendered":{"charts":0,"images":3,"macros":1,"external_links":0,"defined_names":8,"comments":0,"pivot_tables":0},"unopened":[],"bounds":{"document_bytes":16777216,"sheet_cells":100000,"rows_first":2000,"rows_last":500,"rows_between":2000,"halvings":0,"cell_chars":16384,"cell_head_chars":4096},"cells_cut":0,"cells_raw":0,"read":"whole","date_system":"1900"}

{"sheet":"Letter","index":0,"n_rows":0,"n_cols":0,"rows_kept":0,"cut":false,"hidden":false,"merged":[]}

{"sheet":"Instructions","index":1,"n_rows":0,"n_cols":0,"rows_kept":0,"cut":false,"hidden":false,"merged":[]}

{"sheet":"Invoice","index":2,"n_rows":36,"n_cols":17,"rows_kept":36,"cut":false,"hidden":false,"merged":[[22,7,22,13],[24,7,24,13],[26,1,26,5],[26,7,26,13],[2,15,2,17],[14,6,14,14],[0,0,0,19],[13,5,13,15],[16,7,16,13],[18,7,18,13],[20,7,20,13]]}
["INVOICE"]
[]
[null,null,null,null,null,null,null,null,null,null,null,null,null,null,"Date: ",{"$f":"TODAY()","v":"2021-01-28"}]
[]
[null,null,null,"Wisconsin Corn Evaluation Program"]
[null,null,null,"Department of Agronomy"]
[null,null,null,"University of Wisconsin"]
[null,null,null,"N695 Hopkins Road"]
[null,null,null,"Arlington, WI 53911"]
[]
[null,null,null,null,null,null,"Description of Services:","  2021 Corn Hybrid Trial Entry Fee"]
[]
[]
[null,null,null,"Company",null,{"$f":"'HybridTrial Entry (page 1) '!$L$32","v":"-"},null,null,null,null,null,null,null,null,null,null," "]
[]
[]
[null,null,null,null,null,"Hybrid Trial Entry Fee (page 1)",null,{"$f":"'HybridTrial Entry (page 1) '!$W$32","v":0}]
[]
[null,null,null,null,null,"Hybrid Trial Entry Fee (page 2)",null,{"$f":"'HybridTrial Entry (page 2)  '!$W$32","v":0}]
[]
[null,null,null,null,null,"Organic Trial Entry Fee",null,{"$f":"'Organic Trial Entry'!$X$26","v":0}]
[]
[null,null,null,null,null,"Private Trial Entry Fee  (page 1)",null,{"$f":"'Private Trials (page 1)'!$J$44","v":0}]
[]
[null,null,null,null,null,"Private Trial Entry Fee  (page 2)",null,{"$f":"'Private Trials (page 2)'!$J$44","v":0}]
[]
[null,"Total Due",null,null,null,null,null,{"$f":"+(H17+H19+H21+H23+H25)","v":0}]
[null,null,null,null,null,null,null,null,null,null,null,null,null,null,null,null," "]
[]
[null,null,null,"Please make check payable to:"]
[]
[null,null,null,"Wisconsin Corn Evaluation Program"]
[null,null,null,"Department of Agronomy"]
[null,null,null,"University of Wisconsin"]
[null,null,null,"N695 Hopkins Road"]
[null,null,null,"Arlington, WI 53911"]

{"sheet":"HybridTrial Entry (page 1) ","index":3,"n_rows":36,"n_cols":33,"rows_kept":36,"cut":false,"hidden":false,"merged":[[0,0,0,25],[1,3,2,15],[2,17,2,20],[2,21,2,24],[3,3,3,12],[3,17,4,20],[3,21,4,24],[4,8,5,8],[4,9,5,9],[5,3,5,7],[5,10,5,11],[5,12,5,16],[6,3,6,7],[6,10,6,11],[6,12,6,16],[7,3,7,7],[7,10,7,11],[7,12,7,16],[8,3,8,7],[8,10,8,11],[8,12,8,16],[9,3,9,7],[9,10,9,11],[9,12,9,16],[10,3,10,7],[10,10,10,11],[10,12,10,16],[11,3,11,7],[11,10,11,11],[11,12,11,16],[12,3,12,7],[12,10,12,11],[12,12,12,16],[13,3,13,7],[13,10,13,11],[13,12,13,16],[14,3,14,7],[14,10,14,11],[14,12,14,16],[15,3,15,7],[15,10,15,11],[15,12,15,16],[16,3,16,7],[16,10,16,11],[16,12,16,16],[17,3,17,7],[17,10,17,11],[17,12,17,16],[18,3,18,7],[18,10,18,11],[18,12,18,16],[19,3,19,7],[19,10,19,11],[19,12,19,16],[20,3,20,7],[20,10,20,11],[20,12,20,16],[21,3,21,7],[21,10,21,11],[21,12,21,16],[22,3,22,7],[22,10,22,11],[22,12,22,16],[23,3,23,7],[23,10,23,11],[23,12,23,16],[29,17,29,18],[29,19,29,21],[29,22,29,24],[30,1,30,4],[31,0,31,6],[28,22,28,24],[24,3,24,7],[24,10,24,11],[24,12,24,16],[25,3,25,7],[25,10,25,11],[25,12,25,16],[31,11,31,16],[30,19,30,21],[30,22,30,24],[26,3,26,7],[26,10,26,11],[26,12,26,16],[27,0,27,25],[28,1,28,6],[28,17,28,18],[28,19,28,21],[32,2,32,6],[32,11,32,16],[45,27,45,30],[46,29,47,30],[48,19,48,22],[48,28,48,30],[33,20,33,25],[33,2,33,6],[33,11,33,16],[31,19,32,21],[31,22,32,24],[49,19,49,22],[49,28,49,30],[50,19,50,22],[50,28,50,30],[51,19,51,22],[51,28,51,30],[52,19,52,22],[52,28,52,30],[34,2,34,6],[34,11,34,16],[35,2,35,6],[35,11,35,16]]}
[" APPLICATION FOR ENTRY - 2021 WISCONSIN CORN EVALUATION PROGRAM"]
[null,null,null,"Complete the hybrid information section. Mark the zone in which each variety is to be tested.                                     (S = Southern, SC = South Central, NC = North Central, N = Northern) "]
[null,"Brand Name",null,null,null,null,null,null,null,null,null,null,null,null,null,null,null,"- $375 -",null,null,null,"- $395 -"]
[null,null,null,"See instructions for locations within each zone.",null,null,null,null,null,null,null,null,null,null,null,null,null,"Public Grain Trials",null,null,null,"Public Silage Trials"]
[null,null,null,null,null,null,null,null,"Refuge In a Bag?","Did we test this hybrid in 2020?"]
[null,"Hybrid","RM","Technology",null,null,null,null,null,null,"Other",null,"Seed Treatment",null,null,null,null,"S","SC","NC","N","S","SC","NC","N"]
[null,"Hybrid 2021VT2PRIB",100,"50 - Genuity™ VT Double Pro™ RIB",null,null,null,null,"yes","no"," AQUAmax, Artesian, DroughtGuard, bmr, leafy, ND",null,"Cruiser250+Dynasty+MaximXL",null,null,null,null,null,"X","X",null,null,"X","X"]
[1,null,null,null,null,null,null,null,null,null,null,null,null,null,null,null,null,null,null,null,null,null,null,null,null,1]
[2,null,null,null,null,null,null,null,null,null,null,null,null,null,null,null,null,null,null,null,null,null,null,null,null,2]
[3,null,null,null,null,null,null,null,null,null,null,null,null,null,null,null,null,null,null,null,null,null,null,null,null,3]
[4,null,null,null,null,null,null,null,null,null,null,null,null,null,null,null,null,null,null,null,null,null,null,null,null,4]
[5,null,null,null,null,null,null,null,null,null,null,null,null,null,null,null,null,null,null,null,null,null,null,null,null,5]
[6,null,null,null,null,null,null,null,null,null,null,null,null,null,null,null,null,null,null,null,null,null,null,null,null,6]
[7,null,null,null,null,null,null,null,null,null,null,null,null,null,null,null,null,null,null,null,null,null,null,null,null,7,null,null,null,null,null,null," "]
[8,null,null,null,null,null,null,null,null,null,null,null,null,null,null,null,null,null,null,null,null,null,null,null,null,8]
[9,null,null,null,null,null,null,null,null,null,null,null,null,null,null,null,null,null,null,null,null,null,null,null,null,9]
[10,null,null,null,null,null,null,null,null,null,null,null,null,null,null,null,null,null,null,null,null,null,null,null,null,10]
[11,null,null,null,null,null,null,null,null,null,null,null,null,null,null,null,null,null,null,null,null,null,null,null,null,11]
[12,null,null,null,null,null,null,null,null,null,null,null,null,null,null,null,null,null,null,null,null,null,null,null,null,12]
[13,null,null,null,null,null,null,null,null,null,null,null,null,null,null,null,null,null,null,null,null,null,null,null,null,13]
[14,null,null,null,null,null,null,null,null,null,null,null,null,null,null,null,null,null,null,null,null,null,null,null,null,14]
[15,null,null,null,null,null,null,null,null,null,null,null,null,null,null,null,null,null,null,null,null,null,null,null,null,15]
[16,null,null,null,null,null,null,null,null,null,null,null,null,null,null,null,null,null,null,null,null,null,null,null,null,16]
[17,null,null,null,null,null,null,null,null,null,null,null," ",null,null,null,null,null,null,null,null,null,null,null,null,17]
[18,null,null,null,null,null,null,null,null,null,null,null,null,null,null,null,null,null,null,null,null,null,null,null,null,18]
[19,null,null,null,null,null,null,null,null,null,null,null,null,null,null,null,null,null,null,null,null,null,null,null,null,19]
[20,null,null,null,null,null,null,null,null,null,null,null,null,null,null,null,null,null,null,null,null,null,null,null,null,20]
["Every possible effort will be made to plant, harvest, and report data for each entry accepted.  However, should a natural calamity occur causing loss of crop and data, no financial liability, including return of testing fees, is neither expressed nor implied."]
[null,"Please send application, payment and seed to: ",null,null,null,null,null,null,null,null,null,null," This application form is due by:"," March 12, 2021",null,null,null,{"$f":"COUNTA(R8:U27)","v":0},null,"Grain entries x $375 =",null,null,{"$f":"+R29*375","v":0}]
[null,"Corn Evaluation Program, Dept. of Agronomy, University of Wisconsin",null,null,null,null,null,null,null,null,null,null,"Seed, with seed treatment description, is due by:"," March 19, 2021",null,null,null,{"$f":"COUNTA(V8:Y27)","v":0},null,"Silage entries x $395 =",null,null,{"$f":"+R30*395","v":0}]
[null," N695 Hopkins Road,  Arlington, WI 53911.",null,null,null,null,null,null,null,null,null,null,"Last date to accept substitute seed.  No Exceptions:","  April 16, 2021",null,null,null,null,null,"University Surcharge (7%)",null,null,{"$f":"+(W29+W30)*(0.07)","v":0}]
["If any of the hybrids listed above were entered with a different experimental number in 2020, please indicate changes.",null,null,null,null,null,null,null,null,null,"Company Name:","-",null,null,null,null,null,null,null,"Total  =  ",null,null,{"$f":"+W29+W30+W31","v":0}]
[null,"2020 experimental number:  a.",null,null,null,null,null,null,null,null,"Mailing Address:"]
[null,"b.",null,null,null,null,null,null,null,null,null,null,null,null,null,null,null,null,null,"Contact Person:"]
[null,"2021 brand/number: a.",null,null,null,null,null,null,null,null,"Company Web Site:",null,null,null,null,null,null,null,null,"Phone No.:"]
[null,"b.",null,null,null,null,null,null,null,null,"Signature of Entrant:",null,null,null,null,null,null,null,null,"E-Mail Address:"]

{"sheet":"HybridTrial Entry (page 2)  ","index":4,"n_rows":36,"n_cols":33,"rows_kept":36,"cut":false,"hidden":false,"merged":[[0,0,0,25],[1,3,2,15],[2,17,2,20],[2,21,2,24],[3,3,3,12],[3,17,4,20],[3,21,4,24],[4,8,5,8],[4,9,5,9],[5,3,5,7],[5,10,5,11],[5,12,5,16],[6,3,6,7],[6,10,6,11],[6,12,6,16],[7,3,7,7],[7,10,7,11],[7,12,7,16],[8,3,8,7],[8,10,8,11],[8,12,8,16],[9,3,9,7],[9,10,9,11],[9,12,9,16],[10,3,10,7],[10,10,10,11],[10,12,10,16],[11,3,11,7],[11,10,11,11],[11,12,11,16],[12,3,12,7],[12,10,12,11],[12,12,12,16],[13,3,13,7],[13,10,13,11],[13,12,13,16],[14,3,14,7],[14,10,14,11],[14,12,14,16],[15,3,15,7],[15,10,15,11],[15,12,15,16],[16,3,16,7],[16,10,16,11],[16,12,16,16],[17,3,17,7],[17,10,17,11],[17,12,17,16],[18,3,18,7],[18,10,18,11],[18,12,18,16],[19,3,19,7],[19,10,19,11],[19,12,19,16],[20,3,20,7],[20,10,20,11],[20,12,20,16],[21,3,21,7],[21,10,21,11],[21,12,21,16],[22,3,22,7],[22,10,22,11],[22,12,22,16],[23,3,23,7],[23,10,23,11],[23,12,23,16],[24,3,24,7],[24,10,24,11],[24,12,24,16],[25,3,25,7],[25,10,25,11],[25,12,25,16],[26,3,26,7],[26,10,26,11],[26,12,26,16],[27,0,27,25],[28,1,28,6],[28,17,28,18],[28,19,28,21],[28,22,28,24],[29,17,29,18],[29,19,29,21],[29,22,29,24],[30,1,30,4],[30,19,30,21],[30,22,30,24],[31,0,31,6],[31,11,31,16],[31,19,32,21],[31,22,32,24],[32,2,32,6],[32,11,32,16],[33,2,33,6],[33,11,33,16],[33,20,33,25],[50,19,50,22],[50,28,50,30],[51,19,51,22],[51,28,51,30],[52,19,52,22],[52,28,52,30],[34,2,34,6],[34,11,34,16],[35,2,35,6],[35,11,35,16],[45,27,45,30],[46,29,47,30],[48,19,48,22],[48,28,48,30],[49,19,49,22],[49,28,49,30]]}
[" APPLICATION FOR ENTRY - 2021 WISCONSIN CORN EVALUATION PROGRAM"]
[null,null,null,"Complete the hybrid information section. Mark the zone in which each variety is to be tested.                                     (S = Southern, SC = South Central, NC = North Central, N = Northern) "]
[null,"Brand Name",null,null,null,null,null,null,null,null,null,null,null,null,null,null,null,"- $375 -",null,null,null,"- $395 -"]
[null,null,null,"See instructions for locations within each zone.",null,null,null,null,null,null,null,null,null,null,null,null,null,"Public Grain Trials",null,null,null,"Public Silage Trials"]
[null,null,null,null,null,null,null,null,"Refuge In a Bag?","Did we test this hybrid in 2020?"]
[null,"Hybrid","RM","Technology",null,null,null,null,null,null,"Other",null,"Seed Treatment",null,null,null,null,"S","SC","NC","N","S","SC","NC","N"]
[null,"Hybrid 2021VT2PRIB",100,"50 - Genuity™ VT Double Pro™ RIB",null,null,null,null,"yes","no"," AQUAmax, Artesian, DroughtGuard, bmr, leafy, ND",null,"Cruiser250+Dynasty+MaximXL",null,null,null,null,null,"X","X",null,null,"X","X"]
[21,null,null,null,null,null,null,null,null,null,null,null,null,null,null,null,null,null,null,null,null,null,null,null,null,21]
[22,null,null,null,null,null,null,null,null,null,null,null,null,null,null,null,null,null,null,null,null,null,null,null,null,22]
[23,null,null,null,null,null,null,null,null,null,null,null,null,null,null,null,null,null,null,null,null,null,null,null,null,23]
[24,null,null,null,null,null,null,null,null,null,null,null,null,null,null,null,null,null,null,null,null,null,null,null,null,24]
[25,null,null,null,null,null,null,null,null,null,null,null,null,null,null,null,null,null,null,null,null,null,null,null,null,25]
[26,null,null,null,null,null,null,null,null,null,null,null,null,null,null,null,null,null,null,null,null,null,null,null,null,26]
[27,null,null,null,null,null,null,null,null,null,null,null,null,null,null,null,null,null,null,null,null,null,null,null,null,27,null,null,null,null,null,null," "]
[28,null,null,null,null,null,null,null,null,null,null,null,null,null,null,null,null,null,null,null,null,null,null,null,null,28]
[29,null,null,null,null,null,null,null,null,null,null,null,null,null,null,null,null,null,null,null,null,null,null,null,null,29]
[30,null,null,null,null,null,null,null,null,null,null,null,null,null,null,null,null,null,null,null,null,null,null,null,null,30]
[31,null,null,null,null,null,null,null,null,null,null,null,null,null,null,null,null,null,null,null,null,null,null,null,null,31]
[32,null,null,null,null,null,null,null,null,null,null,null,null,null,null,null,null,null,null,null,null,null,null,null,null,32]
[33,null,null,null,null,null,null,null,null,null,null,null,null,null,null,null,null,null,null,null,null,null,null,null,null,33]
[34,null,null,null,null,null,null,null,null,null,null,null,null,null,null,null,null,null,null,null,null,null,null,null,null,34]
[35,null,null,null,null,null,null,null,null,null,null,null,null,null,null,null,null,null,null,null,null,null,null,null,null,35]
[36,null,null,null,null,null,null,null,null,null,null,null,null,null,null,null,null,null,null,null,null,null,null,null,null,36]
[37,null,null,null,null,null,null,null,null,null,null,null," ",null,null,null,null,null,null,null,null,null,null,null,null,37]
[38,null,null,null,null,null,null,null,null,null,null,null,null,null,null,null,null,null,null,null,null,null,null,null,null,38]
[39,null,null,null,null,null,null,null,null,null,null,null,null,null,null,null,null,null,null,null,null,null,null,null,null,39]
[40,null,null,null,null,null,null,null,null,null,null,null,null,null,null,null,null,null,null,null,null,null,null,null,null,40]
["Every possible effort will be made to plant, harvest, and report data for each entry accepted.  However, should a natural calamity occur causing loss of crop and data, no financial liability, including return of testing fees, is neither expressed nor implied."]
[null,"Please send application, payment and seed to: ",null,null,null,null,null,null,null,null,null,null," This application form is due by:"," March 12, 2021",null,null,null,{"$f":"COUNTA(R8:U27)","v":0},null,"Grain entries x $375 =",null,null,{"$f":"+R29*375","v":0}]
[null,"Corn Evaluation Program, Dept. of Agronomy, University of Wisconsin",null,null,null,null,null,null,null,null,null,null,"Seed, with seed treatment description, is due by:"," March 19, 2021",null,null,null,{"$f":"COUNTA(V8:Y27)","v":0},null,"Silage entries x $395 =",null,null,{"$f":"+R30*395","v":0}]
[null," N695 Hopkins Road,  Arlington, WI 53911.",null,null,null,null,null,null,null,null,null,null,"Last date to accept substitute seed.  No Exceptions:","  April 16, 2021",null,null,null,null,null,"University Surcharge (7%)",null,null,{"$f":"+(W29+W30)*(0.07)","v":0}]
["If any of the hybrids listed above were entered with a different experimental number in 2020, please indicate changes.",null,null,null,null,null,null,null,null,null,"Company Name:","-",null,null,null,null,null,null,null,"Total  =  ",null,null,{"$f":"+W29+W30+W31","v":0}]
[null,"2020 experimental number:  a.",null,null,null,null,null,null,null,null,"Mailing Address:"]
[null,"b.",null,null,null,null,null,null,null,null,null,null,null,null,null,null,null,null,null,"Contact Person:"]
[null,"2021 brand/number: a.",null,null,null,null,null,null,null,null,"Company Web Site:",null,null,null,null,null,null,null,null,"Phone No.:"]
[null,"b.",null,null,null,null,null,null,null,null,"Signature of Entrant:",null,null,null,null,null,null,null,null,"E-Mail Address:"]

{"sheet":"Organic Trial Entry","index":5,"n_rows":35,"n_cols":94,"rows_kept":35,"cut":false,"hidden":false,"merged":[[38,1,38,7],[38,18,38,27],[33,0,33,3],[33,4,33,9],[33,13,33,17],[34,0,34,3],[34,13,34,17],[33,20,33,25],[34,20,34,25],[34,4,34,9],[32,20,32,25],[32,13,32,17],[31,13,31,17],[19,15,19,18],[21,15,21,18],[30,20,30,25],[25,18,26,19],[25,23,26,24],[24,23,24,24],[25,20,26,21],[25,15,26,17],[31,20,31,25],[20,15,20,18],[30,13,30,17],[25,13,26,13],[25,14,26,14],[32,0,32,3],[32,4,32,9],[18,2,18,8],[19,2,19,8],[30,0,30,10],[20,9,20,12],[18,9,18,12],[21,2,21,8],[31,0,31,3],[31,4,31,9],[20,2,20,8],[21,9,21,12],[14,2,14,8],[14,15,14,18],[14,9,14,12],[13,9,13,12],[19,9,19,12],[15,15,15,18],[17,2,17,8],[18,15,18,18],[17,15,17,18],[15,2,15,8],[16,2,16,8],[16,15,16,18],[15,9,15,12],[16,9,16,12],[17,9,17,12],[9,21,10,22],[11,21,11,22],[11,9,11,12],[13,21,13,22],[11,2,11,8],[12,21,12,22],[9,15,10,18],[9,20,10,20],[13,2,13,8],[12,9,12,12],[14,21,14,22],[0,0,1,25],[3,25,3,26],[7,2,8,17],[12,2,12,8],[13,15,13,18],[9,9,10,12],[9,13,10,13],[9,14,10,14],[9,19,10,19],[2,1,2,23],[3,1,4,23],[11,15,11,18],[9,2,10,8],[12,15,12,18],[8,19,8,22],[21,21,21,22],[25,22,26,22],[18,21,18,22],[19,21,19,22],[15,21,15,22],[16,21,16,22],[17,21,17,22],[20,21,20,22]]}
[" APPLICATION FOR ENTRY - 2021 WISCONSIN ORGANIC CORN EVALUATION PROGRAM"]
[null,null,null,null,null,null,null,null,null,null,null,null,null,null,null,null,null,null,null,null,null,null,null,null,null,null,null,null,null,null,null,null,null,null,null,null,null,null,null,null,null,null,null,null,null,null,null,null,null,null,null,null,null,null,null,null,null,null,null,null,null,null,null,null,null,null,null,null,null,null,null,null,null,null,null,null,null,null,null,null,null,null,null,null,null,null,null,null,null,null,null,null,"X","Natural II"]
[null,"Complete the hybrid information section and mark the zone in which each variety is to be tested.  (S = Southern, SC = South Central, NC = North Central) ",null,null,null,null,null,null,null,null,null,null,null,null,null,null,null,null,null,null,null,null,null,null,null,null,null,null,null,null,null,null,null,null,null,null,null,null,null,null,null,null,null,null,null,null,null,null,null,null,null,null,null,null,null,null,null,null,null,null,null,null,null,null,null,null,null,null,null,null,null,null,null,null,null,null,null,null,null,null,null,null,null,null,null,null,null,null,null,null,null,null,null,"Untreated"]
[null,"Trials will be established in organic systems where possible. Trials at sites using organic methods will be planted in 4-row  plots with 3 replications. Sites using conventional methods will be planted in 2-row plots with 3 replications.                                       "]
[]
[]
[]
[null,null,"Organic Hybrid Information"]
[null,null,null,null,null,null,null,null,null,null,null,null,null,null,null,null,null,null,null,"Organic Trials"]
[null,null,"Brand Name",null,null,null,null,null,null,"Hybrid",null,null,null,"RM","Did we test this entry in 2020?","Seed Treatment",null,null,null,"S","SC","NC"]
[]
[null,null,"OrganicSeeds",null,null,null,null,null,null,"ORG1234",null,null,null,100,"yes","Natural II",null,null,null,"X","X","X"]
[null,1,null,null,null,null,null,null,null,null,null,null,null,null,null,null,null,null,null,null,null,null,null,1]
[null,2,null,null,null,null,null,null,null,null,null,null,null,null,null,null,null,null,null,null,null,null,null,2]
[null,3,null,null,null,null,null,null,null,null,null,null,null,null,null,null,null,null,null,null,null,null,null,3]
[null,4,null,null,null,null,null,null,null,null,null,null,null,null,null,null,null,null,null,null,null,null,null,4]
[null,5,null,null,null,null,null,null,null,null,null,null,null,null,null,null,null,null,null,null,null,null,null,5]
[null,6,null,null,null,null,null,null,null,null,null,null,null,null,null,null,null,null,null,null,null,null,null,6]
[null,7,null,null,null,null,null,null,null,null,null,null,null,null,null,null,null,null,null,null,null,null,null,7]
[null,8,null,null,null,null,null,null,null,null,null,null,null,null,null,null,null,null,null,null,null,null,null,8]
[null,9,null,null,null,null,null,null,null,null,null,null,null,null,null,null,null,null,null,null,null,null,null,9]
[null,10,null,null,null,null,null,null,null,null,null,null,null,null,null,null,null,null,null,null,null,null,null,10]
[]
["Every possible effort will be made to plant, harvest, and report data for each entry accepted.  However, should a natural calamity occur causing loss of crop and data, no financial liability, including return of testing fees, is neither expressed nor implied."]
[null,null,null,null,null,null,null,null,null,null," This application form is due by:"," March 12, 2021",null,"Number of entries (X's) in Organic trials:",null,null,null,null,null,null,null,null,null,"Total"]
[null,null,null,null,null,null,null,null,null,null,"Seed is due by:"," March 19, 2021",null,{"$f":"COUNTA(T13:V22)","v":0},"x $375 =",{"$f":"+N26*375","v":0},null,null," x University         Surcharge (7%)",null,{"$f":"+(P26*0.07)","v":0},null,"=",{"$f":"+P26+U26","v":0}]
[null,null,null,null,null,null,null,null,null,null,"Last date to accept substitute seed.  No Exceptions:"," April 16, 2021"]
[null,null,null,null,null,null,null,null,"Please send application, payment and seed to:","Corn Evaluation Program, Dept. of Agronomy, University of Wisconsin, N695 Hopkins Road, Arlington, WI 535911."]
[]
[]
["If any of the hybrids listed above were entered with a different experimental number in 2020, please indicate changes.",null,null,null,null,null,null,null,null,null,null,null,"Company Name:",null,null,null,null,null,null,"Contact Person:"]
["2020 experimental number:  a.",null,null,null,null,null,null,null,null,null,null,null,"Mailing Address:",null,null,null,null,null,null,"Phone No.:"]
["b.",null,null,null,null,null,null,null,null,null,null,null,null,null,null,null,null,null,null,"E-Mail Address:",null,null,null,null,null,null,null,null,null,null,null," "]
["2021 brand/number: a.",null,null,null,null,null,null,null,null,null,null,null,"Company Web Site:",null,null,null,null,null,null,"Date:"]
["b.",null,null,null,null,null,null,null,null,null,null,null,"Signature of Entrant:",null,null,null,null,null,null,"Page:"]

{"sheet":"Private Trials (page 1)","index":6,"n_rows":62,"n_cols":12,"rows_kept":62,"cut":false,"hidden":false,"merged":[[33,3,33,5],[34,3,34,5],[46,0,47,11],[34,1,34,2],[35,1,35,2],[36,1,36,2],[37,1,37,2],[38,1,38,2],[36,3,36,5],[35,3,35,5],[23,1,23,2],[24,1,24,2],[33,1,33,2],[29,1,29,2],[30,1,30,2],[25,1,25,2],[26,1,26,2],[0,0,0,11],[3,1,5,10],[26,3,26,5],[8,1,9,10],[15,7,15,10],[19,1,19,2],[22,3,22,5],[23,3,23,5],[16,7,16,10],[16,3,17,5],[21,3,21,5],[18,3,18,5],[19,3,19,5],[20,3,20,5],[16,1,17,2],[18,1,18,2],[64,3,65,5],[64,8,65,9],[2,0,2,11],[1,0,1,11],[57,3,57,4],[58,3,58,4],[14,1,15,6],[60,5,60,6],[31,3,31,5],[55,1,56,10],[61,3,61,4],[59,3,59,4],[60,3,60,4],[61,5,61,6],[24,3,24,5],[25,3,25,5],[51,1,51,3],[29,3,29,5],[53,1,53,3],[60,7,60,9],[57,5,57,6],[58,5,58,6],[59,5,59,6],[57,7,57,9],[58,7,58,9],[59,7,59,9],[32,3,32,5],[31,1,31,2],[32,1,32,2],[49,1,49,3],[37,3,37,5],[30,3,30,5],[20,1,20,2],[21,1,21,2],[42,9,42,10],[43,3,44,3],[43,9,44,10],[43,6,44,7],[43,4,44,5],[43,1,44,1],[43,2,44,2],[43,8,44,8],[27,1,27,2],[27,3,27,5],[28,3,28,5],[28,1,28,2],[38,3,38,5],[22,1,22,2]]}
[" APPLICATION FOR ENTRY - 2021 WISCONSIN PRIVATE CORN TRIALS"]
["Grain and Silage"]
[]
[null,"The results of these trials will not be published in the Hybrid Trial Book but will be available in our Annual Report.  If you are concerned about confidentiality, you may code your hybrids.  All check hybrids are the responsibility of the entrant."]
[]
[]
[null,"Complete the hybrid information section and mark the zone in which each variety is to be tested."]
[]
[null,"S = Southern Zone (Arlington and Montfort),  SC = South Central Zone (Fond du Lac and Galesville),  NC = North Central Zone (Chippewa Falls, Marshfield and Valders),  N = Northern Zone (Coleman, Marshfield and Spooner Irrigated). "]
[]
[]
[]
[null,"Please check one :",null," Private Silage Trial  ",null,null,"Private Grain Trial  "]
[]
[null,"Hybrid Information"]
[]
[null,"Brand Name",null,"Hybrid",null,null,null,"Private Trials"]
[null,null,null,null,null,null,"RM","S","SC","NC","N"]
[null,"Your Brand",null,"1234GT",null,null,100,null,"X","X"]
[1,null,null,null,null,null,null,null,null,null,null,1]
[2,null,null,null,null,null,null,null,null,null,null,2]
[3,null,null,null,null,null,null,null,null,null,null,3]
[4,null,null,null,null,null,null,null,null,null,null,4]
[5,null,null,null,null,null,null,null,null,null,null,5]
[6,null,null,null,null,null,null,null,null,null,null,6]
[7,null,null,null,null,null,null,null,null,null,null,7]
[8,null,null,null,null,null,null,null,null,null,null,8]
[9,null,null,null,null,null,null,null,null,null,null,9]
[10,null,null,null,null,null,null,null,null,null,null,10]
[11,null,null,null,null,null,null,null,null,null,null,11]
[12,null,null,null,null,null,null,null,null,null,null,12]
[13,null,null,null,null,null,null,null,null,null,null,13]
[14,null,null,null,null,null,null,null,null,null,null,14]
[15,null,null,null,null,null,null,null,null,null,null,15]
[16,null,null,null,null,null,null,null,null,null,null,16]
[17,null,null,null,null,null,null,null,null,null,null,17]
[18,null,null,null,null,null,null,null,null,null,null,18]
[19,null,null,null,null,null,null,null,null,null,null,19]
[20,null,null,null,null,null,null,null,null,null,null,20]
[null,null,null,null,null,null,null,null,null,null,1]
[]
[]
[null,null,"Number of entries (X's) in Organic trials:",null,null,null,null,null,null,"Total"]
[null,{"$f":"COUNTA(H20:K39)","v":0},"x $425 =",{"$f":"+B44*425","v":0}," x University         Surcharge (7%)",null,{"$f":"+(D44*0.07)","v":0},null,"=",{"$f":"+D44+G44","v":0}]
[]
[]
["Please make check payable to: WISCONSIN CORN EVALUATION PROGRAM."]
[]
[]
[null," This application form is due by:",null,null," March 12, 2021",null,"at:","Wisconsin Corn Evaluation Program"]
[null,null,null,null,null,null,null,"Dept. of Agronomy"]
[null,"Seed, with seed treatment description, is due by:",null,null," March 19, 2021",null,null,"University of Wisconsin"]
[null,null,null,null,null,null,null,"N695 Hopkins Road"]
[null,"Last date to accept substitute seed:",null,null," April 16, 2021",null,null,"Arlington, WI 53911"]
[]
[null,"Every possible effort will be made to plant, harvest, and report data for each entry accepted. However, should a natural calamity occur causing loss of crop and data, no financial liability, including return of testing fees, is neither expressed nor implied."]
[]
[null,null,"Company Name:",null,null,"Contact Person:"]
[null,null,"Mailing Address:",null,null,"Phone No.:"]
[null,null,null,null,null,"E-Mail Address:"]
[null,null,"Company Web Site:",null,null,"Date:"]
[null,null,"Signature of Entrant:",null,null,"Page:",null,null,"of"]

{"sheet":"Private Trials (page 2)","index":7,"n_rows":62,"n_cols":12,"rows_kept":62,"cut":false,"hidden":false,"merged":[[61,3,61,4],[61,5,61,6],[65,3,66,5],[65,8,66,9],[59,3,59,4],[59,5,59,6],[59,7,59,9],[60,3,60,4],[60,5,60,6],[60,7,60,9],[42,9,42,10],[58,3,58,4],[58,5,58,6],[58,7,58,9],[57,3,57,4],[57,5,57,6],[43,4,44,5],[43,6,44,7],[43,8,44,8],[57,7,57,9],[43,9,44,10],[46,0,47,11],[49,1,49,3],[51,1,51,3],[53,1,53,3],[55,1,56,10],[36,1,36,2],[36,3,36,5],[37,1,37,2],[37,3,37,5],[38,1,38,2],[38,3,38,5],[33,1,33,2],[33,3,33,5],[34,1,34,2],[34,3,34,5],[35,1,35,2],[35,3,35,5],[30,1,30,2],[30,3,30,5],[31,1,31,2],[31,3,31,5],[32,1,32,2],[32,3,32,5],[27,3,27,5],[28,1,28,2],[28,3,28,5],[29,1,29,2],[29,3,29,5],[18,1,18,2],[18,3,18,5],[19,1,19,2],[19,3,19,5],[21,1,21,2],[21,3,21,5],[16,1,17,2],[16,3,17,5],[0,0,0,11],[1,0,1,11],[2,0,2,11],[3,1,5,10],[8,1,9,10],[14,1,15,6],[15,7,15,10],[16,7,16,10],[43,1,44,1],[43,2,44,2],[43,3,44,3],[20,1,20,2],[20,3,20,5],[22,1,22,2],[22,3,22,5],[23,1,23,2],[23,3,23,5],[24,1,24,2],[24,3,24,5],[25,1,25,2],[25,3,25,5],[26,1,26,2],[26,3,26,5],[27,1,27,2]]}
[" APPLICATION FOR ENTRY - 2021 WISCONSIN PRIVATE CORN TRIALS"]
["Grain and Silage"]
[]
[null,"The results of these trials will not be published in the Hybrid Trial Book but will be available in our Annual Report.  If you are concerned about confidentiality, you may code your hybrids.  All check hybrids are the responsibility of the entrant."]
[]
[]
[null,"Complete the hybrid information section and mark the zone in which each variety is to be tested."]
[]
[null,"S = Southern Zone (Arlington and Montfort),  SC = South Central Zone (Fond du Lac and Galesville),  NC = North Central Zone (Chippewa Falls, Marshfield and Valders),  N = Northern Zone (Coleman, Marshfield and Spooner Irrigated). "]
[]
[]
[]
[null,"Please check one :",null," Private Silage Trial  ",null,null,"Private Grain Trial  "]
[]
[null,"Hybrid Information"]
[]
[null,"Brand Name",null,"Hybrid",null,null,null,"Private Trials"]
[null,null,null,null,null,null,"RM","S","SC","NC","N"]
[null,"Your Brand",null,"1234GT",null,null,100,null,"X","X"]
[21,null,null,null,null,null,null,null,null,null,null,21]
[22,null,null,null,null,null,null,null,null,null,null,22]
[23,null,null,null,null,null,null,null,null,null,null,23]
[24,null,null,null,null,null,null,null,null,null,null,24]
[25,null,null,null,null,null,null,null,null,null,null,25]
[26,null,null,null,null,null,null,null,null,null,null,26]
[27,null,null,null,null,null,null,null,null,null,null,27]
[28,null,null,null,null,null,null,null,null,null,null,28]
[29,null,null,null,null,null,null,null,null,null,null,29]
[30,null,null,null,null,null,null,null,null,null,null,30]
[31,null,null,null,null,null,null,null,null,null,null,31]
[32,null,null,null,null,null,null,null,null,null,null,32]
[33,null,null,null,null,null,null,null,null,null,null,33]
[34,null,null,null,null,null,null,null,null,null,null,34]
[35,null,null,null,null,null,null,null,null,null,null,35]
[36,null,null,null,null,null,null,null,null,null,null,36]
[37,null,null,null,null,null,null,null,null,null,null,37]
[38,null,null,null,null,null,null,null,null,null,null,38]
[39,null,null,null,null,null,null,null,null,null,null,39]
[40,null,null,null,null,null,null,null,null,null,null,40]
[]
[]
[]
[null,null,"Number of entries (X's) in Organic trials:",null,null,null,null,null,null,"Total"]
[null,{"$f":"COUNTA(H20:K39)","v":0},"x $425 =",{"$f":"+B44*425","v":0}," x University         Surcharge (7%)",null,{"$f":"+(D44*0.07)","v":0},null,"=",{"$f":"+D44+G44","v":0}]
[]
[]
["Please make check payable to: WISCONSIN CORN EVALUATION PROGRAM."]
[]
[]
[null," This application form is due by:",null,null," March 12, 2021",null,"at:","Wisconsin Corn Evaluation Program"]
[null,null,null,null,null,null,null,"Dept. of Agronomy"]
[null,"Seed, with seed treatment description, is due by:",null,null," March 19, 2021",null,null,"University of Wisconsin"]
[null,null,null,null,null,null,null,"N695 Hopkins Road"]
[null,"Last date to accept substitute seed:",null,null," April 16, 2021",null,null,"Arlington, WI 53911"]
[]
[null,"Every possible effort will be made to plant, harvest, and report data for each entry accepted. However, should a natural calamity occur causing loss of crop and data, no financial liability, including return of testing fees, is neither expressed nor implied."]
[]
[null,null,"Company Name:",null,null,"Contact Person:"]
[null,null,"Mailing Address:",null,null,"Phone No.:"]
[null,null,null,null,null,"E-Mail Address:"]
[null,null,"Company Web Site:",null,null,"Date:"]
[null,null,"Signature of Entrant:",null,null,"Page:",null,null,"of"]

{"sheet":"Substitute Hybrid Form","index":8,"n_rows":75,"n_cols":28,"rows_kept":75,"cut":false,"hidden":false,"merged":[[10,6,10,10],[10,13,10,15],[10,11,10,12],[9,6,9,10],[9,13,9,15],[9,11,9,12],[8,13,8,15],[8,11,8,12],[7,4,7,15],[8,6,8,10],[1,16,3,27],[0,1,0,27],[5,16,7,19],[5,20,7,23],[2,10,3,13],[4,10,5,13],[5,24,7,27],[2,1,3,3],[4,1,5,3],[7,1,7,3],[19,11,19,12],[19,13,19,15],[18,11,18,12],[13,11,13,12],[19,6,19,10],[13,13,13,15],[14,6,14,10],[18,13,18,15],[18,6,18,10],[15,13,15,15],[13,6,13,10],[16,6,16,10],[16,13,16,15],[15,11,15,12],[17,6,17,10],[15,6,15,10],[28,4,28,8],[28,13,28,20],[23,6,23,10],[23,13,23,15],[20,13,20,15],[26,4,26,8],[26,13,26,20],[22,11,22,12],[23,11,23,12],[22,6,22,10],[21,13,21,15],[21,11,21,12],[21,6,21,10],[22,13,22,15],[20,11,20,12],[20,6,20,10],[11,6,11,10],[11,13,11,15],[12,6,12,10],[12,13,12,15],[11,11,11,12],[12,11,12,12],[16,11,16,12],[17,11,17,12],[14,11,14,12],[14,13,14,15],[17,13,17,15]]}
[null,"Substitute Hybrid Form - 2021"]
[null,null,null,null,null,null,null,null,null,null,null,null,null,null,null,null,"Mark the zone in which the replacement hybrid is to be tested.                 (S = Southern, SC = South Central, NC = North Central, N = Northern) "]
[null," Brand Name",null,null,null,null,null,null,null,null," Date"]
[]
[]
[null,null,null,null,null,null,null,null,null,null,null,null,null,null,null,null,"  Public Grain Trial",null,null,null,"  Public Silage Trial",null,null,null,"Organic Trial"]
[]
[null,"Original Hybrid",null,null,"Replacement Hybrid"]
[null,"Entry No.","Hybrid","RM","Hybrid","RM","Technology",null,null,null,null,"Other",null,"Seed Treatment",null,null,"S","SC","NC","N","S","SC","NC","N","S","SC","NC","N"]
[]
[]
[]
[]
[]
[]
[null,null," ",null," "]
[]
[]
[]
[]
[null,null," "]
[]
[]
[]
[]
[]
[null,null,null,"Contact Person:",null,null,null,null,null,null,null,null,"Phone No.:"]
[]
[null,null,null,"Company Name:",null,null,null,null,null,null,null,null,"E-Mail Address:"]
[]
[]
[]
[]
[]
[]
[]
[]
[]
[]
[]
[]
[]
[]
[]
[]
[]
[]
[]
[]
[]
[]
[]
[]
[]
[]
[]
[]
[]
[]
[]
[]
[]
[]
[]
[]
[]
[]
[]
[]
[null,null,"28 - 2,4-D Tolerant"]
[]
[]
[null,null,"bmr"]
[null,null,"leafy"]
[null,null,"N.D."]

{"sheet":"ListedTraits","index":9,"n_rows":48,"n_cols":2,"rows_kept":48,"cut":false,"hidden":false,"merged":[]}
["Technology","Other"]
["1 - Conventional","bmr"]
["2 - Agrisure® GT","leafy"]
["3 - Agrisure® 3010","Nutrient Dense"]
["25 - Agrisure® GT/RW","Agrisure Artesian™"]
["4 - Agrisure® CB/LL/RW","Optimum® AQUAmax™"]
["5 - Agrisure® 3000GT"]
["66 - Agrisure® 3011"]
["6 - Agrisure Viptera® 3110"]
["7 - Agrisure Viptera® 3111"]
["53 - Agrisure 3122"]
["60 - Agrisure 3122 E-Z Refuge"]
["52 - Agrisure Viptera® 3220"]
["59 - Agrisure Viptera® 3220 E-Z Refuge"]
["57 - Agrisure Duracade™ E-Z Refuge™ 5122"]
["58 - Agrisure Duracade™ E-Z Refuge™ 5222"]
["24 - DAS  SmartStax™"]
["54 - DAS  SmartStax™plus RIB"]
["65 - Genuity™ DroughtGard™"]
["23 - Genuity™ SmartStax™"]
["49 - Genuity™ SmartStax™ RIB"]
["21 - Genuity™ VT Double Pro™"]
["50 - Genuity™ VT Double Pro™ RIB"]
["67 - Genuity™ VT Double Pro™ DroughtGard™"]
["68 - Genuity™ VT Double Pro™ DroughtGard™ RIB"]
["22 - Genuity™ VT Triple Pro™"]
["48 - Genuity™ VT Triple Pro™ RIB"]
["9 - Herculex® I"]
["10 - Herculex® I plus Roundup Ready® Corn 2"]
["11 - Herculex® RW"]
["12 - Herculex® XTRA"]
["13 - Herculex® XTRA plus Roundup Ready® Corn 2"]
["56 - Optimum® AcreMax®"]
["15 - Optimum® AcreMax® 1"]
["14 - Optimum® AcreMax® RW"]
["40 - Optimum® AcreMax® Xtra"]
["61 - Optimum® AcreMax® Xtreme"]
["55 - Optimum® Intrasect®"]
["63 - Optimum® Intrasect®Xtra"]
["62 - Optimum® Leptra™"]
["64 - Optimum® TRIsect®"]
["71 - Powercore®"]
["75 - Qrome®"]
["16 - Roundup Ready® Corn 2"]
["18 - Roundup Ready® Corn 2 and YieldGard® Corn Borer"]
["17 - YieldGard® Corn Borer"]
["19 - YieldGard® VT Rootworm plus Roundup Ready® Corn 2"]
["20 - YieldGard® VT Triple"]